bitfinex/quotes_BTCUSD_20220207
["timestamp","ask_amount","ask_price","bid_price","bid_amount"]
[1644235696339,0.67263176,42758.0,42757.0,0.00082651]
[1644235696539,0.36221707,42758.0,42757.0,0.00082651]
[1644235696739,0.34998507,42758.0,42757.0,0.00082651]
[1644235696941,0.34998507,42758.0,42756.0,0.02914551]
[1644235697188,0.012232,42757.0,42756.0,0.02914551]
[1644235697585,0.3088031,42758.0,42756.0,0.02914551]
[1644235697988,0.2088031,42758.0,42756.0,0.02914551]
[1644235698186,0.3088031,42758.0,42756.0,0.02914551]
[1644235698787,0.2088031,42758.0,42755.0,0.16354783]
[1644235699486,0.3088031,42758.0,42756.0,0.058519]
[1644235701242,0.012232,42757.0,42756.0,0.058519]
[1644235701642,0.112232,42757.0,42756.0,0.058519]
[1644235701843,0.11357828,42757.0,42756.0,0.058519]
[1644235706490,0.10134628,42757.0,42756.0,0.058519]
[1644235706693,0.11357828,42757.0,42756.0,0.058519]
[1644235713085,0.11357828,42757.0,42756.0,0.053519]
[1644235715792,0.11357828,42757.0,42749.0,0.117047]
[1644235716045,0.11357828,42757.0,42747.0,0.02104885]
[1644235716046,0.01988168,42750.0,42747.0,0.02104885]
[1644235716637,0.09988631,42750.0,42747.0,0.02039589]
[1644235716838,0.31452577,42750.0,42747.0,0.02039589]
[1644235717338,0.41452577,42750.0,42747.0,0.02039589]
[1644235717737,0.51452577,42750.0,42747.0,0.02039589]
[1644235717938,0.51452577,42750.0,42744.0,0.26716447]
[1644235718140,0.49464409,42750.0,42747.0,0.058536]
[1644235718342,0.01988168,42748.0,42747.0,0.058536]
[1644235719342,0.01988168,42748.0,42746.0,0.175594]
[1644235720588,0.11988168,42748.0,42746.0,0.175594]
[1644235720790,0.11988168,42748.0,42747.0,0.05]
[1644235721194,0.11988168,42748.0,42746.0,0.175594]
[1644235723191,0.11988168,42748.0,42746.0,0.156834]
[1644235723843,0.11988168,42748.0,42747.0,0.22917598]
[1644235724041,0.11988168,42748.0,42747.0,0.22495598]
[1644235724437,0.01988168,42748.0,42747.0,0.22495598]
[1644235726443,0.0196152,42748.0,42747.0,0.22495598]
[1644235727040,0.02091545,42750.0,42747.0,0.33347598]
[1644235727491,0.00130025,42750.0,42747.0,0.33347598]
[1644235728490,0.00090018,42750.0,42747.0,0.33347598]
[1644235728892,0.02051538,42750.0,42747.0,0.33347598]
[1644235730492,0.02051538,42750.0,42747.0,0.28347598]
[1644235731842,0.00141438,42749.0,42747.0,0.28347598]
[1644235732039,0.00141438,42749.0,42748.0,0.24372122]
[1644235732239,0.02102958,42749.0,42748.0,0.24372122]
[1644235734344,0.02102958,42749.0,42747.0,0.05852]
[1644235737392,0.00141438,42749.0,42747.0,0.05852]
[1644235737594,0.00141438,42749.0,42748.0,0.3562368]
[1644235738838,0.00141438,42749.0,42748.0,0.4062368]
[1644235740439,0.00141438,42749.0,42747.0,0.10852]
[1644235740440,0.02102958,42749.0,42746.0,0.00065294]
[1644235740639,0.02102958,42749.0,42745.0,0.058527]
[1644235740841,0.0196152,42746.0,42745.0,0.05917995]
[1644235741140,0.00141438,42749.0,42745.0,0.00065295]
[1644235741440,0.058527,42747.0,42745.0,0.00065295]
[1644235741640,1.69109264,42746.0,42745.0,0.00065295]
[1644235741940,1.69109264,42746.0,42743.0,0.09020157]
[1644235741941,1.70332464,42746.0,42743.0,0.09020157]
[1644235742207,1.70332464,42746.0,42743.0,0.00065297]
[1644235742208,0.23853209,42744.0,42743.0,0.00065297]
[1644235743096,0.23853209,42744.0,42742.0,0.00023699]
[1644235743296,0.23853209,42744.0,42743.0,0.07798677]
[1644235743496,0.23853209,42744.0,42743.0,0.12798677]
[1644235745202,0.058533,42745.0,42743.0,0.12798677]
[1644235745398,0.058533,42745.0,42743.0,0.12822376]
[1644235745598,0.058533,42745.0,42743.0,0.05023699]
[1644235745799,0.058533,42745.0,42743.0,0.00023699]
[1644235746038,0.058533,42745.0,42742.0,0.10088998]
[1644235746237,0.2697455,42744.0,42742.0,0.10088998]
[1644235746438,0.2697455,42744.0,42742.0,0.05088998]
[1644235746638,0.2697455,42744.0,42743.0,0.05]
[1644235746838,0.2697455,42744.0,42743.0,0.00023699]
[1644235747037,0.2697455,42744.0,42742.0,0.00023699]
[1644235747241,0.058533,42743.0,42741.0,0.15941999]
[1644235747944,0.058533,42743.0,42741.0,0.18915179]
[1644235748342,0.058533,42743.0,42735.0,0.1339]
[1644235748343,1.31793435,42742.0,42727.0,0.1]
[1644235748547,1.31793435,42742.0,42720.0,1.720042]
[1644235748548,0.05,42729.0,42720.0,1.720042]
[1644235749041,0.26610848,42728.0,42720.0,1.720042]
[1644235749241,0.26610848,42728.0,42726.0,0.1052207]
[1644235749439,0.21880848,42728.0,42726.0,0.1052207]
[1644235749701,0.21880848,42728.0,42726.0,0.04]
[1644235749702,0.058553,42728.0,42726.0,0.04]
[1644235749899,0.15835095,42728.0,42726.0,0.04]
[1644235750499,0.25835095,42728.0,42726.0,0.04]
[1644235750998,0.25835095,42728.0,42726.0,0.12953679]
[1644235751399,0.25835095,42728.0,42725.0,0.08882244]
[1644235751601,0.05,42726.0,42725.0,0.08882244]
[1644235751799,0.25835095,42728.0,42725.0,0.0892817]
[1644235751800,0.15835095,42728.0,42725.0,0.0892817]
[1644235752000,0.15835095,42728.0,42726.0,0.325852]
[1644235752001,0.25835095,42728.0,42726.0,0.325852]
[1644235752200,0.05,42736.0,42727.0,1.125852]
[1644235752404,0.12596953,42739.0,42727.0,1.175852]
[1644235752405,0.01472392,42734.0,42727.0,1.175852]
[1644235752599,0.01472392,42734.0,42731.0,0.19949135]
[1644235752798,0.01472392,42734.0,42732.0,0.08281851]
[1644235752998,0.11727074,42733.0,42732.0,0.08281851]
[1644235754145,0.117077,42733.0,42732.0,0.08281851]
[1644235754949,0.117077,42733.0,42730.0,0.058545]
[1644235755144,0.117077,42733.0,42727.0,0.28103667]
[1644235756246,0.117077,42733.0,42727.0,0.35288447]
[1644235756545,0.0006458,42732.0,42727.0,0.35288447]
[1644235756745,0.0006458,42732.0,42729.0,0.20980154]
[1644235756947,0.0006458,42732.0,42727.0,0.35288447]
[1644235757598,0.11831323,42733.0,42727.0,0.35288447]
[1644235757795,0.00019432,42732.0,42727.0,0.35288447]
[1644235757996,0.00019432,42732.0,42727.0,0.61926395]
[1644235758395,0.00019432,42732.0,42727.0,0.35288447]
[1644235758797,0.11831323,42733.0,42727.0,0.40288447]
[1644235758998,0.00019432,42732.0,42727.0,0.40288447]
[1644235759297,0.00019432,42732.0,42727.0,0.46142547]
[1644235759500,0.05873232,42732.0,42727.0,0.158541]
[1644235759699,0.05,42730.0,42727.0,0.05]
[1644235759898,0.167108,42730.0,42727.0,0.05]
[1644235760101,0.167108,42730.0,42723.0,0.05065085]
[1644235760298,0.167108,42730.0,42723.0,0.00065085]
[1644235760498,0.058554,42729.0,42723.0,0.00065085]
[1644235761141,0.058554,42729.0,42721.0,0.37844137]
[1644235761338,0.117111,42727.0,42721.0,0.07959712]
[1644235761542,0.058556,42726.0,42720.0,1.290242]
[1644235762540,0.2170665,42727.0,42720.0,1.37578667]
[1644235762743,0.053554,42721.0,42720.0,1.37578667]
[1644235763940,0.053554,42721.0,42720.0,1.37602175]
[1644235764544,0.053554,42721.0,42720.0,1.29047708]
[1644235765412,0.0532153,42721.0,42720.0,1.29047708]
[1644235766609,0.33255593,42721.0,42720.0,1.29047708]
[1644235766811,0.3347926,42721.0,42720.0,1.29047708]
[1644235770043,0.64814504,42721.0,42720.0,1.29047708]
[1644235770244,0.64814504,42721.0,42720.0,0.33653465]
[1644235770245,0.4470246,42721.0,42720.0,0.33653465]
[1644235770447,0.4470246,42721.0,42720.0,0.33629957]
[1644235770448,0.7470246,42721.0,42720.0,0.33629957]
[1644235770647,0.4470246,42721.0,42720.0,0.33629957]
[1644235770944,0.90072464,42720.0,42719.0,0.00023508]
[1644235771244,0.012232,42719.0,42718.0,0.00388596]
[1644235771443,0.3629132,42719.0,42718.0,0.00388596]
[1644235771843,0.4629132,42719.0,42718.0,0.00388596]
[1644235772044,0.4629132,42719.0,42718.0,0.00323508]
[1644235772293,0.762232,42718.0,42717.0,0.0052]
[1644235772494,1.08051487,42718.0,42717.0,0.00543509]
[1644235772692,0.862232,42718.0,42717.0,0.00543509]
[1644235772892,0.862232,42718.0,42716.0,0.5367509]
[1644235772893,0.65,42717.0,42716.0,0.5367509]
[1644235773092,0.95160616,42717.0,42716.0,0.5367509]
[1644235773295,1.03937416,42717.0,42716.0,0.184589]
[1644235773495,0.058586,42714.0,42700.0,0.535]
[1644235773695,0.05,42711.0,42700.0,0.535]
[1644235773992,0.2702901,42710.0,42701.0,0.05]
[1644235774192,0.3288731,42710.0,42701.0,0.05]
[1644235775692,0.32906976,42710.0,42701.0,0.05]
[1644235775941,0.34982765,42710.0,42701.0,0.05]
[1644235776741,0.34963099,42710.0,42701.0,0.05]
[1644235776942,0.32952404,42710.0,42703.0,0.00065104]
[1644235777942,0.3288731,42710.0,42701.0,0.05]
[1644235778142,0.3143967,42709.0,42704.0,0.00065103]
[1644235778348,0.058592,42705.0,42704.0,0.00065103]
[1644235778550,0.058592,42705.0,42701.0,0.05]
[1644235778551,0.75,42704.0,42701.0,0.05]
[1644235778744,0.75,42704.0,42700.0,0.535]
[1644235779144,0.858601,42704.0,42700.0,0.535]
[1644235779446,0.858601,42704.0,42700.0,0.183388]
[1644235779447,0.012232,42702.0,42700.0,0.183388]
[1644235779705,0.108602,42701.0,42685.0,0.00017748]
[1644235780498,0.08359156,42689.0,42685.0,0.00017748]
[1644235780698,0.058609,42688.0,42686.0,0.325852]
[1644235781400,0.058609,42688.0,42687.0,0.325852]
[1644235782200,0.058609,42688.0,42686.0,0.05]
[1644235782398,0.058609,42688.0,42685.0,0.00063203]
[1644235782801,0.058609,42688.0,42685.0,0.00017748]
[1644235782802,0.27258743,42688.0,42685.0,0.00017748]
[1644235783001,0.012232,42687.0,42685.0,0.00017748]
[1644235783443,0.01547248,42687.0,42685.0,0.00017748]
[1644235783645,0.01547248,42687.0,42684.0,0.00365124]
[1644235784043,0.01547248,42687.0,42684.0,0.003]
[1644235784444,0.012232,42686.0,42684.0,0.003]
[1644235785042,0.01547248,42687.0,42684.0,0.003]
[1644235786250,0.01547248,42687.0,42684.0,0.00292294]
[1644235786446,0.012232,42686.0,42684.0,0.00292294]
[1644235788897,0.012232,42686.0,42684.0,0.00315458]
[1644235791549,0.00273756,42685.0,42684.0,0.00315458]
[1644235791845,0.01496956,42685.0,42684.0,0.00315458]
[1644235796496,0.27556956,42685.0,42684.0,0.00315458]
[1644235797498,0.37556956,42685.0,42684.0,0.00315458]
[1644235798445,0.71036288,42685.0,42684.0,0.00315458]
[1644235798644,0.81036288,42685.0,42684.0,0.00315458]
[1644235799747,0.012232,42683.0,42673.0,0.79398489]
[1644235799945,0.012232,42683.0,42682.0,0.00065126]
[1644235800145,0.47688501,42683.0,42682.0,0.00065126]
[1644235800345,0.4859998,42683.0,42682.0,0.00065126]
[1644235800545,0.56571313,42683.0,42682.0,0.00065126]
[1644235800946,0.56571313,42683.0,42680.0,0.00065128]
[1644235801956,0.56571313,42683.0,42675.0,0.00023167]
[1644235801957,0.90201491,42683.0,42675.0,0.00023167]
[1644235802207,0.05,42680.0,42674.0,0.00023167]
[1644235802405,0.05,42680.0,42679.0,0.0006513]
[1644235802406,0.062232,42680.0,42679.0,0.0006513]
[1644235803303,0.062232,42680.0,42674.0,0.00023167]
[1644235803503,0.05,42680.0,42677.0,0.00065132]
[1644235804307,0.25,42679.0,42672.0,0.0011]
[1644235804510,0.058626,42678.0,42672.0,0.0011]
[1644235806144,0.07224162,42673.0,42672.0,0.0011]
[1644235808246,0.08447362,42673.0,42672.0,0.0011]
[1644235808449,0.13447362,42673.0,42672.0,0.0011]
[1644235808648,0.18177362,42673.0,42672.0,0.0011]
[1644235808848,0.16954162,42673.0,42670.0,0.00065139]
[1644235809046,0.30162309,42669.0,42666.0,0.0286609]
[1644235809246,0.21424432,42667.0,42666.0,0.0286609]
[1644235809448,0.22647632,42667.0,42666.0,0.0286609]
[1644235811706,0.29647632,42667.0,42666.0,0.0286609]
[1644235812800,0.29647632,42667.0,42664.0,0.00088136]
[1644235813004,0.070887,42666.0,42664.0,0.00133505]
[1644235813200,0.062232,42665.0,42664.0,0.00133505]
[1644235813448,0.12815138,42665.0,42664.0,0.00133505]
[1644235813646,0.44545907,42665.0,42664.0,0.00133505]
[1644235813848,0.44545907,42665.0,42658.0,0.00133728]
[1644235813849,0.20693201,42663.0,42658.0,0.00133728]
[1644235814048,0.05,42659.0,42658.0,0.00133728]
[1644235814247,0.05,42659.0,42656.0,0.0011]
[1644235814248,0.7,42658.0,42656.0,0.0011]
[1644235814449,0.34163471,42657.0,42656.0,0.0011]
[1644235815047,0.38893471,42657.0,42656.0,0.0011]
[1644235815248,0.38202965,42657.0,42647.0,0.26461486]
[1644235815448,0.0473,42657.0,42642.0,0.4206]
[1644235815646,0.6,42656.0,42643.0,0.53507712]
[1644235815846,0.0473,42655.0,42643.0,0.00088128]
[1644235816247,0.058662,42654.0,42643.0,0.05954628]
[1644235816449,0.1920461,42654.0,42643.0,0.04954628]
[1644235817300,0.05,42653.0,42643.0,0.04954628]
[1644235817502,0.3245478,42651.0,42643.0,0.04954628]
[1644235817899,0.3245478,42651.0,42646.0,0.00065244]
[1644235818099,0.3745478,42651.0,42646.0,0.00065244]
[1644235818302,0.012232,42650.0,42646.0,0.00065244]
[1644235818501,0.117354,42649.0,42646.0,0.00065244]
[1644235818702,0.012232,42648.0,42646.0,0.00065244]
[1644235818899,0.012232,42648.0,42643.0,0.00088128]
[1644235819098,0.117354,42649.0,42643.0,0.00088128]
[1644235819301,0.07189688,42647.0,42643.0,0.00088128]
[1644235819499,0.3242061,42646.0,42643.0,0.00088128]
[1644235819699,0.058681,42646.0,42643.0,0.00088128]
[1644235819899,0.058681,42646.0,42643.0,0.00023148]
[1644235819900,0.8,42645.0,42643.0,0.00023148]
[1644235820103,0.012232,42644.0,42642.0,0.00023148]
[1644235820303,0.012232,42644.0,42633.0,0.2579485]
[1644235820304,0.117361,42643.0,42633.0,0.2579485]
[1644235820500,0.5,42642.0,42641.0,0.00023149]
[1644235820700,0.5,42642.0,42635.0,0.63743149]
[1644235821156,0.5,42642.0,42635.0,0.53743149]
[1644235821553,0.25572729,42640.0,42635.0,0.53743149]
[1644235821753,0.058688,42639.0,42635.0,0.53743149]
[1644235822156,0.058688,42639.0,42634.0,1.11424415]
[1644235822356,0.108688,42639.0,42634.0,0.87972573]
[1644235822555,0.235618,42638.0,42634.0,0.87972573]
[1644235822757,0.235618,42638.0,42634.0,0.88037771]
[1644235822758,0.117391,42637.0,42634.0,0.88037771]
[1644235822955,0.13805144,42636.0,42634.0,0.88037771]
[1644235823354,0.21699728,42636.0,42634.0,0.88037771]
[1644235823755,0.21699728,42636.0,42634.0,0.87972573]
[1644235823955,0.058694,42635.0,42634.0,0.87972573]
[1644235824154,0.105994,42635.0,42634.0,0.87972573]
[1644235824358,0.105994,42635.0,42634.0,1.22972573]
[1644235824708,0.01906723,42640.0,42636.0,0.325852]
[1644235824904,0.05,42659.0,42636.0,0.325852]
[1644235824906,0.13784336,42666.0,42638.0,1.125852]
[1644235825100,0.08437058,42669.0,42661.0,0.5906]
[1644235825304,0.00065141,42671.0,42661.0,1.7132792]
[1644235825498,0.13455005,42667.0,42661.0,1.7632792]
[1644235826100,0.13455005,42667.0,42661.0,1.50409794]
[1644235826303,0.13455005,42667.0,42661.0,0.6879]
[1644235826304,0.18455005,42667.0,42661.0,0.6879]
[1644235826500,0.18455005,42667.0,42661.0,0.6379]
[1644235827302,0.30355919,42662.0,42661.0,0.6379]
[1644235827500,0.058655,42662.0,42661.0,0.6379]
[1644235827700,0.058655,42662.0,42661.0,0.6879]
[1644235827903,0.058655,42662.0,42661.0,0.6379]
[1644235828100,0.05,42665.0,42661.0,0.6379]
[1644235828301,0.108648,42665.0,42661.0,0.6379]
[1644235828750,0.108648,42665.0,42661.0,0.63855169]
[1644235828949,0.05,42662.0,42661.0,0.63855169]
[1644235829150,0.38690088,42662.0,42661.0,0.63855169]
[1644235829352,0.38690088,42662.0,42661.0,0.00065169]
[1644235829353,0.54559237,42662.0,42661.0,0.00065169]
[1644235829550,0.55782437,42662.0,42661.0,0.00065169]
[1644235829750,0.54957733,42662.0,42653.0,0.02121059]
[1644235829951,0.05,42655.0,42653.0,0.02121059]
[1644235830351,0.05,42655.0,42652.0,0.01426253]
[1644235830554,0.058667,42654.0,42652.0,0.01426253]
[1644235830749,0.00618212,42653.0,42652.0,0.01426253]
[1644235831250,0.01841412,42653.0,42652.0,0.01426253]
[1644235831550,0.00618212,42653.0,42652.0,0.01426253]
[1644235832594,0.00618212,42653.0,42652.0,0.00529126]
[1644235832995,0.01515339,42653.0,42652.0,0.00529126]
[1644235834097,0.06515339,42653.0,42652.0,0.00529126]
[1644235834496,0.05,42653.0,42646.0,0.23926657]
[1644235834696,0.05,42653.0,42650.0,0.00065181]
[1644235834897,0.040754,42653.0,42650.0,0.07691769]
[1644235835097,0.040754,42652.0,42650.0,0.12691769]
[1644235835699,0.040754,42652.0,42650.0,0.07626588]
[1644235835957,0.040754,42652.0,42649.0,0.00065182]
[1644235836158,0.058664,42651.0,42649.0,0.00065182]
[1644235836956,0.040754,42652.0,42648.0,0.05866]
[1644235837156,0.040754,42652.0,42648.0,0.05931183]
[1644235837356,0.040754,42652.0,42649.0,0.07752853]
[1644235837555,0.040754,42652.0,42649.0,0.12752853]
[1644235837955,0.040754,42652.0,42649.0,0.12775999]
[1644235839155,0.040754,42652.0,42649.0,0.00023146]
[1644235839357,0.040754,42652.0,42647.0,0.00023146]
[1644235839559,0.040754,42652.0,42648.0,0.00065183]
[1644235840199,0.040754,42652.0,42649.0,0.08555772]
[1644235840399,0.02070145,42652.0,42650.0,0.009246]
[1644235840602,0.02070145,42652.0,42651.0,0.325852]
[1644235840799,0.02070145,42652.0,42651.0,0.42608346]
[1644235840999,0.00065174,42654.0,42653.0,0.325852]
[1644235841205,0.00065174,42654.0,42653.0,0.82428259]
[1644235841399,0.00065174,42654.0,42653.0,0.58927914]
[1644235841599,0.00065174,42654.0,42653.0,0.5895106]
[1644235841803,0.48424656,42666.0,42653.0,0.9037114]
[1644235841804,0.08424656,42666.0,42653.0,0.9037114]
[1644235842104,0.08424656,42666.0,42664.0,0.009246]
[1644235842304,0.07,42667.0,42666.0,0.325852]
[1644235842500,0.07,42667.0,42666.0,0.673152]
[1644235842700,0.07,42667.0,42666.0,1.15777685]
[1644235842901,0.040754,42679.0,42666.0,1.15777685]
[1644235842902,0.040754,42679.0,42666.0,1.28502585]
[1644235843100,0.040754,42679.0,42672.0,0.009246]
[1644235843299,0.040754,42679.0,42668.0,0.00023146]
[1644235843550,0.0003,42681.0,42672.0,0.009246]
[1644235843551,0.041054,42681.0,42672.0,0.009246]
[1644235843753,0.041054,42681.0,42673.0,0.05861583]
[1644235843952,0.041054,42681.0,42675.0,0.21689944]
[1644235844151,0.041054,42681.0,42680.0,0.07505819]
[1644235844152,0.0003,42681.0,42680.0,0.07505819]
[1644235844353,0.01965037,42681.0,42680.0,0.07505819]
[1644235845959,0.01965037,42681.0,42676.0,0.23515818]
[1644235846157,0.01965037,42681.0,42677.0,0.05]
[1644235846361,0.01965037,42681.0,42678.0,0.058619]
[1644235846558,0.0003,42681.0,42678.0,0.058619]
[1644235846758,0.00095146,42681.0,42678.0,0.058619]
[1644235847207,0.00095146,42681.0,42679.0,0.07181909]
[1644235847802,0.0003,42681.0,42679.0,0.07181909]
[1644235848307,0.0003,42681.0,42674.0,0.35814114]
[1644235848308,0.099382,42680.0,42669.0,0.3]
[1644235848505,0.099382,42680.0,42667.0,0.30023146]
[1644235848506,0.040754,42670.0,42667.0,0.30023146]
[1644235848703,0.040754,42670.0,42667.0,0.3]
[1644235848905,0.040754,42670.0,42667.0,0.30023146]
[1644235849103,0.012232,42669.0,42668.0,0.07654277]
[1644235849408,0.012232,42669.0,42668.0,0.37654277]
[1644235849604,0.00065157,42671.0,42669.0,0.325852]
[1644235849803,0.00065157,42671.0,42670.0,0.625852]
[1644235850203,0.040754,42677.0,42671.0,0.05862798]
[1644235850404,0.040754,42674.0,42670.0,0.3]
[1644235850605,0.040754,42671.0,42670.0,0.3]
[1644235850804,0.00065155,42673.0,42670.0,0.3]
[1644235851555,0.040754,42674.0,42670.0,0.3]
[1644235851752,0.04140554,42674.0,42670.0,0.35]
[1644235852651,0.040754,42674.0,42671.0,0.19371103]
[1644235852951,0.04140554,42674.0,42671.0,0.19371103]
[1644235853752,0.040754,42674.0,42671.0,0.19371103]
[1644235853953,0.040754,42674.0,42670.0,0.35]
[1644235855295,0.040754,42674.0,42670.0,0.4]
[1644235855296,0.04140554,42674.0,42670.0,0.4]
[1644235855696,0.04140554,42674.0,42670.0,0.35]
[1644235855897,0.04140554,42674.0,42671.0,0.067873]
[1644235855898,0.00065154,42674.0,42671.0,0.067873]
[1644235856101,0.00065154,42674.0,42673.0,0.26266762]
[1644235856299,0.1,42679.0,42673.0,0.26266762]
[1644235856499,0.00065154,42674.0,42673.0,0.56266762]
[1644235856700,0.00272444,42674.0,42673.0,0.88851962]
[1644235856901,0.00272444,42674.0,42673.0,1.26125132]
[1644235857499,0.0020729,42674.0,42673.0,1.26125132]
[1644235858644,0.0020729,42674.0,42673.0,0.93539932]
[1644235859046,0.0020729,42674.0,42673.0,1.26125132]
[1644235859245,0.0020729,42674.0,42673.0,0.93539932]
[1644235859646,0.0020729,42674.0,42673.0,0.56266762]
[1644235859846,0.0428269,42674.0,42673.0,0.56266762]
[1644235860748,0.0020729,42674.0,42673.0,0.56266762]
[1644235860949,0.0428269,42674.0,42673.0,0.26266762]
[1644235861652,0.04391782,42674.0,42672.0,0.05]
[1644235861848,0.04391782,42674.0,42670.0,0.23892436]
[1644235862502,0.04454599,42674.0,42670.0,0.23892436]
[1644235862703,0.04454599,42674.0,42670.0,0.46635815]
[1644235862902,0.04454599,42674.0,42670.0,0.23892436]
[1644235863302,0.04391782,42674.0,42670.0,0.23892436]
[1644235863705,0.04454599,42674.0,42670.0,0.23892436]
[1644235863905,0.04454599,42674.0,42670.0,0.44509458]
[1644235864611,0.00316382,42674.0,42671.0,0.335098]
[1644235864803,0.00377008,42674.0,42671.0,0.335098]
[1644235865005,0.00377008,42674.0,42671.0,0.325852]
[1644235865605,0.00377008,42674.0,42670.0,0.50371746]
[1644235865804,0.00316382,42674.0,42670.0,0.55371746]
[1644235867346,0.00377008,42674.0,42670.0,0.55371746]
[1644235868145,0.00316382,42674.0,42670.0,0.50371746]
[1644235868445,0.00377157,42674.0,42670.0,0.55371746]
[1644235869245,0.00377157,42674.0,42672.0,0.325852]
[1644235869445,0.00316382,42674.0,42671.0,0.058624]
[1644235869707,0.00314724,42674.0,42671.0,0.058624]
[1644235869998,0.00314724,42674.0,42672.0,0.009246]
[1644235870597,0.00253949,42674.0,42672.0,0.009246]
[1644235871198,0.00253949,42674.0,42672.0,0.00851326]
[1644235872100,0.00109092,42674.0,42671.0,0.05634467]
[1644235873198,0.00109092,42674.0,42671.0,0.11496867]
[1644235873664,0.00109092,42674.0,42672.0,0.325852]
[1644235874063,0.00109092,42674.0,42672.0,0.493094]
[1644235874264,0.00109092,42674.0,42673.0,0.05]
[1644235875365,0.04776077,42678.0,42674.0,0.07572136]
[1644235875565,0.00062444,42676.0,42675.0,0.05862316]
[1644235875767,0.00062444,42676.0,42675.0,0.11724616]
[1644235876167,0.17933764,42684.0,42676.0,0.8]
[1644235876369,0.1379,42690.0,42676.0,0.8]
[1644235876370,0.1,42683.0,42679.0,0.375852]
[1644235876567,0.1,42683.0,42680.0,0.0473]
[1644235876767,0.1,42683.0,42680.0,0.373152]
[1644235876968,0.1,42683.0,42680.0,0.0473]
[1644235877221,0.0184812,42685.0,42680.0,0.3473]
[1644235877413,0.0184812,42685.0,42680.0,0.673152]
[1644235878313,0.0184812,42685.0,42680.0,0.3473]
[1644235878713,0.058612,42688.0,42680.0,0.3473]
[1644235879114,0.00065206,42683.0,42680.0,0.3473]
[1644235880219,0.058612,42688.0,42680.0,0.2473]
[1644235880415,0.00053681,42683.0,42680.0,0.2473]
[1644235881249,0.01937577,42690.0,42680.0,0.2473]
[1644235881250,0.01937577,42690.0,42680.0,0.67906]
[1644235881452,0.01937577,42690.0,42689.0,0.05]
[1644235881649,0.01937577,42690.0,42689.0,0.24014032]
[1644235882049,0.01937577,42690.0,42689.0,0.29014032]
[1644235882449,0.01937577,42690.0,42689.0,0.34874441]
[1644235882649,0.16140022,42694.0,42689.0,0.37837425]
[1644235882853,0.16140022,42694.0,42689.0,0.42837425]
[1644235883450,0.16140022,42694.0,42689.0,0.37837425]
[1644235883652,0.16140022,42694.0,42689.0,0.31977016]
[1644235884251,0.16140022,42694.0,42689.0,0.07962984]
[1644235884451,0.012232,42693.0,42689.0,0.07962984]
[1644235885097,0.16140022,42694.0,42683.0,0.02166698]
[1644235885098,0.058623,42690.0,42683.0,0.02166698]
[1644235885298,0.19688199,42689.0,42683.0,0.02166698]
[1644235886299,0.19688199,42689.0,42684.0,0.08002559]
[1644235886501,0.000652,42688.0,42684.0,0.08002559]
[1644235887004,0.058616,42687.0,42684.0,0.08002559]
[1644235891551,0.00091134,42686.0,42684.0,0.08002559]
[1644235892211,0.00091134,42686.0,42685.0,0.05]
[1644235892806,0.00091134,42686.0,42684.0,0.08002559]
[1644235894007,0.00091134,42686.0,42684.0,0.06872559]
[1644235895950,0.00091134,42686.0,42684.0,0.29020433]
[1644235896552,0.00091134,42686.0,42685.0,0.05]
[1644235897854,0.00091134,42686.0,42684.0,0.06872559]
[1644235900609,0.00091134,42686.0,42678.0,0.3]
[1644235900805,0.00091134,42686.0,42677.0,0.15380733]
[1644235900806,0.058635,42684.0,42677.0,0.01888414]
[1644235901010,0.22573393,42683.0,42678.0,0.3]
[1644235901604,0.32573393,42683.0,42678.0,0.3]
[1644235901808,0.32573393,42683.0,42678.0,0.35]
[1644235902005,0.60163993,42683.0,42678.0,0.3]
[1644235902406,0.60163993,42683.0,42677.0,0.01888412]
[1644235902607,0.012232,42682.0,42677.0,0.01888412]
[1644235902809,0.058635,42681.0,42677.0,0.01888412]
[1644235903107,0.058635,42681.0,42677.0,0.01823158]
[1644235903305,0.058635,42681.0,42677.0,0.01888412]
[1644235903555,0.158635,42681.0,42677.0,0.00065254]
[1644235904155,0.059532,42680.0,42677.0,0.00065254]
[1644235904356,0.117276,42679.0,42677.0,0.00065254]
[1644235904556,0.059532,42678.0,42677.0,0.00065254]
[1644235904955,0.118169,42678.0,42677.0,0.00065254]
[1644235905154,0.105937,42678.0,42677.0,0.00065254]
[1644235905558,0.105937,42678.0,42671.0,0.058638]
[1644235905755,0.205937,42678.0,42675.0,0.00065255]
[1644235906656,0.205937,42678.0,42670.0,0.058635]
[1644235906857,0.205937,42678.0,42674.0,0.00065256]
[1644235907204,0.012232,42677.0,42674.0,0.00065256]
[1644235907599,0.05864,42675.0,42674.0,0.00065256]
[1644235907799,0.05864,42675.0,42668.0,0.35252197]
[1644235907800,0.15864,42675.0,42668.0,0.34991135]
[1644235907999,0.15864,42675.0,42672.0,0.00065258]
[1644235909002,0.15864,42675.0,42671.0,0.23276381]
[1644235909201,0.15864,42675.0,42671.0,0.00065259]
[1644235910202,0.15864,42675.0,42670.0,0.08086288]
[1644235910400,0.15864,42675.0,42671.0,0.00045229]
[1644235911452,0.15975446,42675.0,42668.0,0.23927848]
[1644235911653,0.15975446,42675.0,42671.0,0.00045229]
[1644235912652,0.15975446,42675.0,42669.0,0.07537648]
[1644235912852,0.15975446,42675.0,42671.0,0.00065296]
[1644235913856,0.15975446,42675.0,42669.0,0.1887662]
[1644235914053,0.15975446,42675.0,42671.0,0.00065296]
[1644235915004,0.15975446,42675.0,42669.0,0.07148641]
[1644235915206,0.15975446,42675.0,42671.0,0.00065296]
[1644235916206,0.15975446,42675.0,42668.0,0.23446491]
[1644235916408,0.15975446,42675.0,42671.0,0.00065296]
[1644235917407,0.15975446,42675.0,42670.0,0.07137713]
[1644235917607,0.15975446,42675.0,42671.0,0.00065296]
[1644235918107,0.15975446,42675.0,42671.0,0.30065296]
[1644235918308,0.15975446,42675.0,42673.0,0.05]
[1644235918558,0.05975446,42675.0,42673.0,0.05]
[1644235918755,0.05975446,42675.0,42671.0,0.68410663]
[1644235919156,0.05975446,42675.0,42671.0,0.73410663]
[1644235919755,0.05975446,42675.0,42672.0,0.05863]
[1644235920155,0.05975446,42675.0,42674.0,0.05]
[1644235920558,0.05975446,42675.0,42674.0,0.04979592]
[1644235920755,0.05995854,42675.0,42674.0,0.04979592]
[1644235921257,0.05995854,42675.0,42673.0,0.05]
[1644235921658,0.05995854,42675.0,42672.0,0.22653553]
[1644235922302,0.05995854,42675.0,42673.0,0.21598095]